fUSD/lending_fUSD_20250107
["ID","MTS","AMOUNT","RATE_DAILY","PERIOD"]
[348003549,1736265038137,-217.15157932,9.864e-05,2]
[348003553,1736265038173,-282.84842068,9.864e-05,2]
[348003556,1736265038193,-353.68138949,9.934e-05,2]
[348003558,1736265038205,-500.0,9.964e-05,2]
[348003560,1736265038214,-526.79800465,9.964e-05,2]
[348003562,1736265038224,-500.0,9.964e-05,2]
[348003564,1736265038233,-500.0,9.964e-05,2]
[348003566,1736265038246,-1278.78909518,9.964e-05,2]
[348003568,1736265038258,-617.20090482,9.964e-05,2]
[348003570,1736265038268,-483.79909518,9.964e-05,2]
[348003574,1736265038294,-1417.46090482,9.964e-05,2]
[348003575,1736265038303,-2491.67,9.964e-05,2]
[348003577,1736265038313,-1847.76,9.964e-05,2]
[348003579,1736265038323,-2407.36,9.964e-05,2]
[348003581,1736265038333,-2187.63,9.964e-05,2]
[348003584,1736265038345,-4786.02,9.964e-05,2]
[348003586,1736265038356,-4051.67,9.964e-05,2]
[348003588,1736265038366,-500.0,9.964e-05,2]
[348003589,1736265038375,-1859.52,9.964e-05,2]
[348003592,1736265038386,-4789.54,9.964e-05,2]
[348003594,1736265038398,-500.0,9.964e-05,2]
[348003595,1736265038408,-874.57,9.964e-05,2]
[348003597,1736265038418,-500.0,9.964e-05,2]
[348003599,1736265038433,-781.91,9.964e-05,2]
[348003601,1736265038442,-500.0,9.964e-05,2]
[348003603,1736265038451,-553.06,9.964e-05,2]
[348003605,1736265038461,-508.84384695,9.964e-05,2]
[348003607,1736265038471,-1045.29,9.964e-05,2]
[348003609,1736265038480,-712.3,9.964e-05,2]
[348003611,1736265038490,-551.81,9.964e-05,2]
[348003614,1736265038504,-500.0,9.964e-05,2]
[348003615,1736265038514,-624.46,9.964e-05,2]
[348003618,1736265038523,-500.0,9.964e-05,2]
[348003620,1736265038533,-843.89,9.964e-05,2]
[348003621,1736265038543,-593.28,9.964e-05,2]
[348003623,1736265038553,-1066.73,9.964e-05,2]
[348003625,1736265038562,-500.0,9.964e-05,2]
[348003627,1736265038572,-362.74927067,9.964e-05,2]
[348003632,1736265038605,-1083.93072933,9.964e-05,2]
[348003634,1736265038615,-868.01927067,9.964e-05,2]
[348003636,1736265038627,-622.61072933,9.964e-05,2]
[348003638,1736265038636,-609.58,9.964e-05,2]
[348003640,1736265038646,-334.70765155,9.964e-05,2]
[348003642,1736265038655,-160.17829917,9.964e-05,2]
[348003644,1736265038667,-662.45170083,9.964e-05,2]
[348003646,1736265038678,-500.0,9.964e-05,2]
[348003649,1736265038688,-691.14,9.964e-05,2]
[348003652,1736265038698,-1028.11,9.964e-05,2]
[348003655,1736265038708,-790.24,9.964e-05,2]
[348003659,1736265038719,-716.8,9.964e-05,2]
[348003662,1736265038731,-1049.17,9.964e-05,2]
[348003666,1736265038748,-1080.02,9.964e-05,2]
[348003670,1736265038757,-2360.61,9.964e-05,2]
[348003673,1736265038767,-1733.37,9.964e-05,2]
[348003676,1736265038777,-657.27,9.964e-05,2]
[348003679,1736265038786,-500.0,9.964e-05,2]
[348003682,1736265038796,-664.01,9.964e-05,2]
[348003685,1736265038806,-1412.48,9.964e-05,2]
[348003688,1736265038816,-2045.59,9.964e-05,2]
[348003691,1736265038827,-500.0,9.964e-05,2]
[348003693,1736265038836,-1850.57,9.964e-05,2]
[348003696,1736265038846,-1821.01,9.964e-05,2]
[348003698,1736265038856,-1409.33,9.964e-05,2]
[348003700,1736265038866,-707.06,9.964e-05,2]
[348003702,1736265038877,-1980.86,9.964e-05,2]
[348003704,1736265038887,-1204.09,9.964e-05,2]
[348003706,1736265038897,-500.0,9.964e-05,2]
[348003708,1736265038906,-2080.6,9.964e-05,2]
[348003710,1736265038916,-1340.44,9.964e-05,2]
[348003712,1736265038925,-2491.17,9.964e-05,2]
[348003714,1736265038935,-500.0,9.964e-05,2]
[348003716,1736265038944,-689.18,9.964e-05,2]
[348003718,1736265038953,-500.0,9.964e-05,2]
[348003720,1736265038962,-4141.29,9.964e-05,2]
[348003722,1736265038972,-919.66,9.964e-05,2]
[348003724,1736265038981,-500.0,9.964e-05,2]
[348003726,1736265038991,-500.0,9.964e-05,2]
[348003728,1736265039008,-589.62,9.964e-05,2]
[348003730,1736265039018,-4413.74,9.964e-05,2]
[348003732,1736265039028,-8871.92,9.964e-05,2]
[348003734,1736265039037,-2162.98,9.964e-05,2]
[348003736,1736265039047,-793.65,9.964e-05,2]
[348003738,1736265039059,-2430.36,9.964e-05,2]
[348003740,1736265039069,-500.0,9.964e-05,2]
[348003742,1736265039079,-2436.06,9.964e-05,2]
[348003744,1736265039088,-851.57,9.964e-05,2]
[348003746,1736265039098,-1484.11,9.964e-05,2]
[348003748,1736265039107,-1422.27,9.964e-05,2]
[348003750,1736265039117,-3956.33,9.964e-05,2]
[348003752,1736265039126,-511.99,9.965e-05,2]
[348003754,1736265039135,-559.77,9.965e-05,2]
[348003756,1736265039144,-500.0,9.965e-05,2]
[348003758,1736265039154,-500.0,9.965e-05,2]
[348003760,1736265039163,-500.0,9.965e-05,2]
[348003762,1736265039173,-500.0,9.965e-05,2]
[348003764,1736265039182,-500.0,9.965e-05,2]
[348003766,1736265039191,-500.0,9.965e-05,2]
[348003768,1736265039200,-500.0,9.965e-05,2]
[348003770,1736265039210,-500.0,9.965e-05,2]
[348003772,1736265039220,-500.0,9.965e-05,2]
[348003774,1736265039229,-500.0,9.965e-05,2]
[348003776,1736265039238,-500.0,9.965e-05,2]
[348003778,1736265039254,-500.0,9.965e-05,2]
[348003780,1736265039264,-500.0,9.965e-05,2]
[348003782,1736265039275,-500.0,9.965e-05,2]
[348003784,1736265039285,-500.0,9.965e-05,2]
[348003786,1736265039294,-500.0,9.965e-05,2]
[348003788,1736265039306,-500.0,9.965e-05,2]
[348003790,1736265039316,-500.0,9.965e-05,2]
[348003792,1736265039326,-500.0,9.965e-05,2]
[348003794,1736265039337,-500.0,9.965e-05,2]
[348003796,1736265039347,-581.56,9.965e-05,2]
[348003798,1736265039358,-214.55977713,9.965e-05,2]
[348003800,1736265039368,-500.0,9.965e-05,2]
[348003802,1736265039379,-500.0,9.965e-05,2]
[348003803,1736265039389,-500.0,9.965e-05,2]
[348003805,1736265039399,-500.0,9.965e-05,2]
[348003807,1736265039408,-500.0,9.965e-05,2]
[348003809,1736265039418,-500.0,9.965e-05,2]
[348003811,1736265039427,-500.0,9.965e-05,2]
[348003813,1736265039436,-585.53,9.965e-05,2]
[348003815,1736265039444,-202.56010713,9.965e-05,2]
[348003817,1736265039454,-500.0,9.965e-05,2]
[348003819,1736265039464,-500.0,9.965e-05,2]
[348003821,1736265039473,-601.99,9.965e-05,2]
[348003823,1736265039483,-500.0,9.965e-05,2]
[348003825,1736265039497,-500.0,9.965e-05,2]
[348003827,1736265039506,-500.0,9.965e-05,2]
[348003829,1736265039516,-500.0,9.965e-05,2]
[348003831,1736265039525,-500.0,9.965e-05,2]
[348003833,1736265039535,-1441.97,9.965e-05,2]
[348003835,1736265039544,-3363.88,9.965e-05,2]
[348003836,1736265039553,-523.39,9.965e-05,2]
[348003838,1736265039563,-1476.58,9.965e-05,2]
[348003841,1736265039573,-1140.67148984,9.965e-05,2]
[348003843,1736265039587,-622.37851016,9.965e-05,2]
[348003845,1736265039596,-612.06,9.965e-05,2]
[348003868,1736265039835,-2410.75,9.965e-05,2]
[348003871,1736265039846,-1380.07,9.965e-05,2]
[348003874,1736265039856,-1557.45,9.965e-05,2]
[348003877,1736265039866,-980.03,9.965e-05,2]
[348003879,1736265039876,-3662.63,9.965e-05,2]
[348003881,1736265039886,-2916.88,9.968e-05,2]
[348003883,1736265039895,-5847.21,9.998e-05,2]
[348003885,1736265039906,-1155.6,9.998e-05,2]
[348003887,1736265039916,-4244.68,9.998e-05,2]
[348003889,1736265039931,-1043.38,9.998e-05,2]
[348003893,1736265039945,-500.0,9.998e-05,2]
[348003896,1736265039955,-1689.0,9.998e-05,2]
[348003898,1736265039965,-161.38,0.0001,2]
[348003900,1736265039976,-407.5820148,0.0001,2]
[348003902,1736265039986,-353.68138962,0.0001,2]
[348003904,1736265040001,-353.68138949,0.0001,2]
[348003906,1736265040011,-353.68138949,0.0001,2]
[348003908,1736265040020,-353.68138949,0.0001,2]
[348003910,1736265040030,-353.68138949,0.0001,2]
[348003912,1736265040041,-353.68138949,0.0001,2]
[348003914,1736265040050,-353.68138949,0.0001,2]
[348003916,1736265040060,-353.68138949,0.0001,2]
[348003918,1736265040071,-353.68138949,0.0001,2]
[348003920,1736265040081,-496.3828,0.00010037,2]
[348003922,1736265040092,-353.68138949,0.00010083,2]
[348003924,1736265040103,-306.80320128,0.00010104,2]
[348003926,1736265040113,-1000.0,0.00010107,2]
[348003928,1736265040122,-5482.47632708,0.00010135,4]
[348003930,1736265040133,-518.79,0.00010135,2]
[348003932,1736265040143,-3250.34,0.00010135,2]
[348003934,1736265040155,-4842.31325165,0.00010135,2]
[348003937,1736265040168,-772.06674835,0.00010135,2]
[348003939,1736265040178,-2894.08,0.00010135,2]
[348003941,1736265040188,-537.75,0.00010135,2]
[348003943,1736265040198,-1809.44,0.00010135,2]
[348003945,1736265040208,-500.0,0.00010135,2]
[348003947,1736265040218,-500.0,0.00010135,2]
[348003949,1736265040228,-880.11486978,0.00010135,2]
[348003951,1736265040240,-3622.55513022,0.00010135,2]
[348003953,1736265040254,-1623.05,0.00010135,2]
[348003955,1736265040264,-1248.77,0.00010135,2]
[348003957,1736265040273,-2424.72,0.00010135,2]
[348003959,1736265040283,-1058.59,0.00010135,2]
[348003961,1736265040293,-1345.57,0.00010135,2]
[348003963,1736265040303,-500.0,0.00010136,2]
[348003965,1736265040314,-723.82,0.00010136,2]
[348003967,1736265040323,-500.0,0.00010136,2]
[348003970,1736265040333,-500.0,0.00010136,2]
[348003971,1736265040344,-888.27,0.00010136,2]
[348003973,1736265040354,-500.0,0.00010136,2]
[348003976,1736265040365,-211.65486978,0.00010136,2]
[348003979,1736265040394,-292.42513022,0.00010136,2]
[348003981,1736265040404,-988.57,0.00010136,2]
[348003983,1736265040414,-1032.11566978,0.00010136,2]
[348003985,1736265040426,-226.99433022,0.00010136,2]
[348003987,1736265040435,-555.38726978,0.00010136,2]
[348004064,1736265041318,-9731.2,8.675e-05,2]
[348004070,1736265041366,-1116.54791909,8.675e-05,2]
[348004072,1736265041381,-13052.25208091,8.675e-05,2]
[348004074,1736265041391,-500.0,9.862e-05,2]
[348004076,1736265041400,-500.0,9.862e-05,2]
[348004078,1736265041410,-305.28586455,9.863e-05,2]
[348004080,1736265041419,-500.0,9.863e-05,2]
[348004082,1736265041429,-500.0,9.964e-05,2]
[348004085,1736265041439,-433.56273022,0.00010136,2]
[348004087,1736265041448,-1361.94,0.00010136,2]
[348004089,1736265041457,-500.0,0.00010136,2]
[348004091,1736265041467,-614.17,0.00010136,2]
[348004093,1736265041476,-559.75,0.00010136,2]
[348004094,1736265041486,-506.42,0.00010136,2]
[348004096,1736265041496,-572.32,0.00010136,2]
[348004099,1736265041506,-589.81,0.00010136,2]
[348004101,1736265041515,-701.08,0.00010136,2]
[348004102,1736265041525,-1093.2,0.00010136,2]
[348004105,1736265041534,-500.0,0.00010136,2]
[348004107,1736265041544,-500.0,0.00010136,2]
[348004108,1736265041554,-1052.02,0.00010136,2]
[348004110,1736265041564,-520.13,0.00010136,2]
[348004112,1736265041573,-1028.23,0.00010136,2]
[348004114,1736265041583,-501.43,0.00010136,2]
[348004116,1736265041592,-500.0,0.00010136,2]
[348004118,1736265041601,-1831.56,0.00010136,2]
[348004120,1736265041610,-500.0,0.00010136,2]
[348004122,1736265041620,-500.0,0.00010136,2]
[348004124,1736265041630,-500.0,0.00010136,2]
[348004126,1736265041639,-500.0,0.00010136,2]
[348004129,1736265041649,-1105.66,0.00010136,2]
[348004131,1736265041659,-676.24,0.00010136,2]
[348004133,1736265041668,-638.4,0.00010136,2]
[348004135,1736265041678,-1252.09,0.00010136,2]
[348004137,1736265041687,-608.86,0.00010136,2]
[348004139,1736265041697,-3035.28,0.00010136,2]
[348004141,1736265041706,-500.0,0.00010136,2]
[348004143,1736265041715,-1504.37,0.00010136,2]
[348004145,1736265041725,-884.82,0.00010136,2]
[348004147,1736265041737,-1169.96,0.00010136,2]
[348004149,1736265041748,-500.0,0.00010136,2]
[348004151,1736265041758,-500.0,0.00010136,2]
[348004152,1736265041768,-500.0,0.00010136,2]
[348004155,1736265041779,-500.0,0.00010136,2]
[348004156,1736265041788,-1223.02,0.00010136,2]
[348004159,1736265041799,-500.0,0.00010136,2]
[348004160,1736265041808,-4596.35,0.00010136,2]
[348004162,1736265041818,-650.89,0.00010136,2]
[348004164,1736265041827,-581.61,0.00010136,2]
[348004166,1736265041836,-500.0,0.00010136,2]
[348004168,1736265041846,-500.0,0.00010136,2]
[348004170,1736265041855,-500.0,0.00010136,2]
[348004172,1736265041864,-500.0,0.00010136,2]
[348004174,1736265041873,-500.0,0.00010136,2]
[348004176,1736265041883,-3022.12,0.00010136,2]
[348004178,1736265041892,-500.0,0.00010136,2]
[348004179,1736265041901,-500.0,0.00010136,2]
[348004180,1736265041911,-551.73,0.00010136,2]
[348004181,1736265041921,-546.67,0.00010136,2]
[348004183,1736265041930,-509.19,0.00010136,2]
[348004185,1736265041939,-608.28,0.00010136,2]
[348004187,1736265041948,-515.47,0.00010136,2]
[348004189,1736265041958,-515.829035,0.00010136,2]
[348004191,1736265041967,-1413.33,0.00010136,2]
[348004193,1736265041976,-973.9,0.00010136,2]
[348004195,1736265041985,-500.0,0.00010136,2]
[348004197,1736265041996,-500.0,0.00010136,2]
[348004199,1736265042005,-500.0,0.00010136,2]
[348004201,1736265042015,-500.0,0.00010136,2]
[348004203,1736265042024,-798.67,0.00010136,2]
[348004205,1736265042033,-500.0,0.00010136,2]
[348004207,1736265042042,-500.0,0.00010136,2]
[348004209,1736265042051,-528.50167202,0.00010136,2]
[348004211,1736265042062,-693.28,0.00010136,2]
[348004213,1736265042071,-2177.28,0.00010136,2]
[348004215,1736265042080,-520.07,0.00010136,2]
[348004217,1736265042089,-717.54,0.00010136,2]
[348004219,1736265042098,-543.7,0.00010136,2]
[348004221,1736265042107,-1754.83,0.00010136,2]
[348004223,1736265042117,-500.0,0.00010136,2]
[348004225,1736265042126,-500.0,0.00010136,2]
[348004227,1736265042135,-500.0,0.00010136,2]
[348004229,1736265042144,-558.743417,0.00010136,2]
[348004231,1736265042153,-1221.68,0.00010136,2]
[348004233,1736265042162,-500.0,0.00010136,2]
[348004235,1736265042171,-500.0,0.00010136,2]
[348004237,1736265042180,-3047.31,0.00010136,2]
[348004239,1736265042189,-3713.47,0.00010136,2]
[348004241,1736265042198,-969.12136289,0.00010136,2]
[348004243,1736265042210,-241.34863711,0.00010136,2]
[348004245,1736265042219,-500.68499534,0.00010136,2]
[348004247,1736265042228,-6974.93,0.00010136,2]
[348004249,1736265042238,-500.0,0.00010136,2]
[348004251,1736265042249,-500.0,0.00010136,2]
[348004253,1736265042258,-500.0,0.00010136,2]
[348004255,1736265042268,-974.97,0.00010136,2]
[348004257,1736265042277,-500.0,0.00010136,2]
[348004259,1736265042286,-1262.18,0.00010136,2]
[348004261,1736265042295,-791.54,0.00010136,2]
[348004263,1736265042304,-500.0,0.00010136,2]
[348004265,1736265042314,-2074.04,0.00010136,2]
[348004267,1736265042323,-3706.7,0.00010136,2]
[348004269,1736265042332,-604.877607,0.00010136,2]
[348004271,1736265042344,-166.392393,0.00010136,2]
[348004273,1736265042354,-500.0,0.00010136,2]
[348004275,1736265042363,-240.44055334,0.00010136,2]
[348004277,1736265042372,-1196.81,0.00010136,2]
[348004279,1736265042382,-3975.99,0.00010136,2]
[348004280,1736265042391,-500.0,0.00010136,2]
[348004282,1736265042400,-1195.26,0.00010136,2]
[348004285,1736265042409,-7068.45540994,0.00010136,2]
[348004287,1736265042420,-1097.349999,0.00010136,2]
[348004289,1736265042431,-2161.64459106,0.00010136,2]
[348004291,1736265042440,-500.0,0.00010136,2]
[348004293,1736265042449,-1011.74,0.00010136,2]
[348004295,1736265042458,-500.0,0.00010136,2]
[348004297,1736265042467,-979.33,0.00010136,2]
[348004299,1736265042476,-1020.24,0.00010136,2]
[348004301,1736265042486,-1158.64,0.00010136,2]
[348004303,1736265042497,-559.19,0.00010136,2]
[348004305,1736265042506,-500.0,0.00010136,2]
[348004307,1736265042515,-891.51,0.00010136,2]
[348004308,1736265042525,-500.0,0.00010136,2]
[348004311,1736265042536,-500.0,0.00010136,2]
[348004313,1736265042545,-117.69500894,0.00010136,2]
[348004316,1736265042565,-500.0,9.862e-05,2]
[348004318,1736265042574,-1695.89499106,0.00010136,2]
[348004320,1736265042583,-500.0,0.00010136,2]
[348004322,1736265042593,-557.74,0.00010136,2]
[348004324,1736265042602,-500.0,0.00010136,2]
[348004326,1736265042611,-500.0,0.00010136,2]
[348004327,1736265042621,-500.0,0.00010136,2]
[348004329,1736265042630,-685.76,0.00010136,2]
[348004332,1736265042640,-576.1,0.00010136,2]
[348004333,1736265042649,-500.0,0.00010136,2]
[348004336,1736265042659,-641.17,0.00010136,2]
[348004338,1736265042668,-1000.26,0.00010136,2]
[348004340,1736265042678,-500.0,0.00010136,2]
[348004342,1736265042687,-500.0,0.00010136,2]
[348004343,1736265042696,-656.49,0.00010136,2]
[348004345,1736265042706,-1072.0,0.00010136,2]
[348004347,1736265042715,-2976.66,0.00010136,2]
[348004349,1736265042725,-500.0,0.00010136,2]
[348004352,1736265042737,-712.47,0.00010136,2]
[348004354,1736265042748,-500.0,0.00010136,2]
[348004355,1736265042757,-2390.61,0.00010136,2]
[348004357,1736265042767,-612.83,0.00010136,2]
[348004359,1736265042777,-1316.89,0.00010136,2]
[348004361,1736265042786,-500.0,0.00010136,2]
[348004363,1736265042796,-500.0,0.00010136,2]
[348004365,1736265042806,-500.0,0.00010136,2]
[348004367,1736265042816,-6225.63,0.00010136,2]
[348004369,1736265042825,-815.35,0.00010136,2]
[348004372,1736265042834,-500.0,0.00010136,2]
[348004376,1736265042843,-4888.76,0.00010136,2]
[348004378,1736265042852,-510.39,0.00010136,2]
[348004380,1736265042862,-1275.92,0.00010136,2]
[348004382,1736265042871,-744.49,0.00010136,2]
[348004384,1736265042881,-500.0,0.00010136,2]
[348004387,1736265042890,-628.36,0.00010136,2]
[348004389,1736265042900,-500.0,0.00010136,2]
[348004392,1736265042909,-839.64,0.00010136,2]
[348004394,1736265042920,-1976.49,0.00010136,2]
[348004397,1736265042929,-1848.68,0.00010136,2]
[348004400,1736265042938,-10365.96,0.00010136,2]
[348004402,1736265042947,-691.29,0.00010136,2]
[348004405,1736265042957,-500.0,0.00010136,2]
[348004407,1736265042966,-157.79,0.00010137,2]
[348004410,1736265042975,-500.0,0.00010137,2]
[348004412,1736265042985,-500.0,0.00010137,2]
[348004415,1736265042995,-500.0,0.00010137,2]
[348004417,1736265043004,-500.0,0.00010137,2]
[348004420,1736265043013,-500.0,0.00010137,2]
[348004422,1736265043022,-500.0,0.00010137,2]
[348004424,1736265043031,-500.0,0.00010137,2]
[348004426,1736265043041,-500.0,0.00010137,2]
[348004428,1736265043050,-500.0,0.00010137,2]
[348004430,1736265043060,-593.17,0.00010137,2]
[348004432,1736265043069,-500.0,0.00010137,2]
[348004435,1736265043079,-500.0,0.00010137,2]
[348004438,1736265043088,-500.0,0.00010137,2]
[348004441,1736265043097,-500.0,0.00010137,2]
[348004444,1736265043106,-500.0,0.00010137,2]
[348004447,1736265043115,-244.86046847,0.00010137,2]
[348004449,1736265043125,-509.49366118,0.00010137,2]
[348004451,1736265043134,-649.17,0.00010137,2]
[348004453,1736265043144,-500.0,0.00010137,2]
[348004455,1736265043153,-500.0,0.00010137,2]
[348004457,1736265043163,-500.0,0.00010137,2]
[348004459,1736265043172,-500.0,0.00010137,2]
[348004461,1736265043182,-500.0,0.00010137,2]
[348004463,1736265043191,-500.0,0.00010137,2]
[348004465,1736265043200,-613.39,0.00010137,2]
[348004468,1736265043210,-500.0,0.00010137,2]
[348004470,1736265043219,-500.0,0.00010137,2]
[348004472,1736265043229,-586.12,0.00010137,2]
[348004474,1736265043238,-500.0,0.00010137,2]
[348004476,1736265043251,-500.0,0.00010137,2]
[348004478,1736265043260,-500.0,0.00010137,2]
[348004480,1736265043270,-518.31,0.00010137,2]
[348004483,1736265043280,-500.0,0.00010137,2]
[348004485,1736265043290,-508.3706551,0.00010137,2]
[348004487,1736265043299,-500.0,0.00010137,2]
[348004490,1736265043309,-500.0,0.00010137,2]
[348004494,1736265043319,-500.0,0.00010137,2]
[348004498,1736265043328,-613.88,0.00010137,2]
[348004502,1736265043337,-306.35948099,0.00010137,2]
[348004506,1736265043348,-500.0,0.00010137,2]
[348004510,1736265043359,-500.0,0.00010137,2]
[348004514,1736265043368,-500.0,0.00010137,2]
[348004517,1736265043377,-1353.03,0.00010137,2]
[348004521,1736265043387,-500.0,0.00010137,2]
[348004523,1736265043396,-605.9,0.00010137,2]
[348004527,1736265043405,-1023.55,0.00010137,2]
[348004529,1736265043415,-500.0,0.00010137,2]
[348004533,1736265043424,-767.61,0.00010137,2]
[348004536,1736265043434,-724.83,0.00010137,2]
[348004538,1736265043443,-500.0,0.00010137,2]
[348004540,1736265043452,-521.8,0.00010137,2]
[348004542,1736265043462,-769.24,0.00010137,2]
[348004544,1736265043471,-559.08,0.00010137,2]
[348004547,1736265043480,-500.0,0.00010137,2]
[348004549,1736265043490,-500.0,0.00010137,2]
[348004551,1736265043502,-500.0,0.00010137,2]
[348004553,1736265043511,-855.86,0.00010137,2]
[348004555,1736265043520,-500.0,0.00010137,2]
[348004557,1736265043531,-500.0,0.00010137,2]
[348004559,1736265043540,-500.0,0.00010137,2]
[348004582,1736265043760,-631.96,0.00010137,2]
[348004584,1736265043773,-845.96,0.00010137,2]
[348004586,1736265043784,-501.78,0.00010137,2]
[348004588,1736265043793,-778.08,0.00010137,2]
[348004590,1736265043803,-500.0,0.00010137,2]
[348004592,1736265043813,-500.0,0.00010137,2]
[348004594,1736265043823,-1307.95,0.00010137,2]
[348004596,1736265043833,-500.0,0.00010137,2]
[348004598,1736265043843,-500.0,0.00010137,2]
[348004600,1736265043852,-500.0,0.00010137,2]
[348004602,1736265043862,-1360.6,0.00010137,2]
[348004604,1736265043871,-500.0,0.00010137,2]
[348004606,1736265043879,-500.0,0.00010137,2]
[348004608,1736265043889,-500.0,0.00010137,2]
[348004610,1736265043899,-827.16,0.00010137,2]
[348004612,1736265043908,-500.0,0.00010137,2]
[348004614,1736265043917,-898.13,0.00010137,2]
[348004616,1736265043926,-500.0,0.00010137,2]
[348004618,1736265043935,-500.0,0.00010137,2]
[348004620,1736265043944,-684.12,0.00010137,2]
[348004623,1736265043953,-546.35,0.00010137,2]
[348004626,1736265043963,-500.0,0.00010137,2]
[348004628,1736265043972,-500.0,0.00010137,2]
[348004631,1736265043981,-1500.16,0.00010137,2]
[348004634,1736265043991,-747.68,0.00010137,2]
[348004637,1736265044004,-500.0,0.00010137,2]
[348004640,1736265044013,-500.0,0.00010137,2]
[348004643,1736265044022,-500.0,0.00010137,2]
[348004645,1736265044032,-639.89,0.00010137,2]
[348004647,1736265044041,-500.0,0.00010137,2]
[348004649,1736265044050,-500.0,0.00010137,2]
[348004651,1736265044059,-561.11,0.00010137,2]
[348004653,1736265044069,-757.19,0.00010137,2]
[348004655,1736265044078,-500.0,0.00010137,2]
[348004658,1736265044089,-1119.34,0.00010137,2]
[348004660,1736265044098,-500.0,0.00010137,2]
[348004662,1736265044107,-500.0,0.00010137,2]
[348004663,1736265044116,-500.0,0.00010137,2]
[348004664,1736265044125,-600.71,0.00010137,2]
[348004665,1736265044135,-671.21,0.00010137,2]
[348004666,1736265044144,-500.0,0.00010137,2]
[348004667,1736265044154,-627.79,0.00010137,2]
[348004668,1736265044163,-500.0,0.00010137,2]
[348004669,1736265044172,-527.0,0.00010137,2]
[348004670,1736265044181,-500.0,0.00010137,2]
[348004671,1736265044191,-500.0,0.00010137,2]
[348004672,1736265044200,-500.0,0.00010137,2]
[348004673,1736265044209,-636.59,0.00010137,2]
[348004674,1736265044219,-1014.28,0.00010137,2]
[348004675,1736265044230,-500.0,0.00010137,2]
[348004676,1736265044240,-500.0,0.00010137,2]
[348004678,1736265044251,-500.0,0.00010137,2]
[348004680,1736265044261,-588.03,0.00010137,2]
[348004682,1736265044271,-500.0,0.00010137,2]
[348004684,1736265044281,-500.0,0.00010137,2]
[348004686,1736265044291,-500.0,0.00010137,2]
[348004688,1736265044302,-500.0,0.00010137,2]
[348004690,1736265044311,-652.97,0.00010137,2]
[348004692,1736265044321,-666.04,0.00010137,2]
[348004694,1736265044331,-500.0,0.00010137,2]
[348004696,1736265044342,-566.83,0.00010137,2]
[348004698,1736265044351,-500.0,0.00010137,2]
[348004700,1736265044361,-500.0,0.00010137,2]
[348004702,1736265044370,-786.18,0.00010137,2]
[348004704,1736265044380,-500.0,0.00010137,2]
[348004706,1736265044390,-1323.86,0.00010137,2]
[348004708,1736265044400,-521.1,0.00010137,2]
[348004710,1736265044409,-686.38,0.00010137,2]
[348004712,1736265044419,-638.58,0.00010137,2]
[348004714,1736265044428,-832.18,0.00010137,2]
[348004715,1736265044437,-583.76,0.00010137,2]
[348004716,1736265044447,-500.0,0.00010137,2]
[348004717,1736265044457,-678.69,0.00010137,2]
[348004718,1736265044467,-500.0,0.00010137,2]
[348004719,1736265044476,-720.39,0.00010137,2]
[348004720,1736265044487,-500.0,0.00010137,2]
[348004721,1736265044498,-624.19,0.00010137,2]
[348004722,1736265044508,-542.2,0.00010137,2]
[348004723,1736265044519,-880.19,0.00010137,2]